Workbook

Sheet Lista artykułów spożywczych
M1: =obliczenia!M9 -> NABIAŁ SUMA
B2: Lista artykułów spożywczych
C3: Gotowe | D3: POZYCJA | E3: SKLEP | F3: KATEGORIA | G3: ILOŚĆ | H3: JEDNOSTKA | I3: CENA JEDNOSTKOWA | J3: SUMA | K3: KOMENTARZ | M3: =obliczenia!L9 -> 37
C4: 1 | D4: Pomarańcze | E4: Artykuły spożywcze | F4: Owoce i warzywa | G4: 2 | H4: kg | I4: 2.99 zł | J4: =IFERROR(Lista[ILOŚĆ]*Lista[CENA JEDNOSTKOWA],"") -> 5.98 zł | M4: =obliczenia!M8 -> OWOCE I WARZYWA SUMA
D5: Jabłka | E5: Sad | F5: Owoce i warzywa | G5: 3 | H5: kg | I5: 1.99 zł | J5: =IFERROR(Lista[ILOŚĆ]*Lista[CENA JEDNOSTKOWA],"") -> 5.97 zł | K5: Mam kupon | M5: =obliczenia!L8 -> 45
D6: Banany | E6: Artykuły spożywcze | F6: Owoce i warzywa | G6: 1 | H6: kiść | I6: 3.99 zł | J6: =IFERROR(Lista[ILOŚĆ]*Lista[CENA JEDNOSTKOWA],"") -> 3.99 zł
D7: Sałata | E7: Rynek | F7: Owoce i warzywa | G7: 2 | H7: główka | I7: 2.29 zł | J7: =IFERROR(Lista[ILOŚĆ]*Lista[CENA JEDNOSTKOWA],"") -> 4.58 zł | M7: =obliczenia!M7 -> MIĘSO SUMA
D8: Pomidory | E8: Rynek | F8: Owoce i warzywa | G8: 4 | H8: kg | I8: 3.49 zł | J8: =IFERROR(Lista[ILOŚĆ]*Lista[CENA JEDNOSTKOWA],"") -> 13.96 zł | M8: =obliczenia!L7 -> 80
D9: Kabaczek | E9: Rynek | F9: Owoce i warzywa | G9: 2 | H9: sztuka | I9: 1.50 zł | J9: =IFERROR(Lista[ILOŚĆ]*Lista[CENA JEDNOSTKOWA],"") -> 3.00 zł
D10: Seler | E10: Artykuły spożywcze | F10: Owoce i warzywa | G10: 2 | H10: kiść | I10: 1.99 zł | J10: =IFERROR(Lista[ILOŚĆ]*Lista[CENA JEDNOSTKOWA],"") -> 3.98 zł | M10: =obliczenia!M6 -> OWOCE MORZA SUMA
D11: Ogórek | E11: Rynek | F11: Owoce i warzywa | G11: 1 | H11: kg | I11: 2.29 zł | J11: =IFERROR(Lista[ILOŚĆ]*Lista[CENA JEDNOSTKOWA],"") -> 2.29 zł | M11: =obliczenia!L6 -> 109
D12: Grzyby | E12: Artykuły spożywcze | F12: Owoce i warzywa | G12: 0.5 | H12: kg | I12: 2.25 zł | J12: =IFERROR(Lista[ILOŚĆ]*Lista[CENA JEDNOSTKOWA],"") -> 1.13 zł | K12: Duża pieczarka
D13: Mleko | E13: Dostawa do domu | F13: Nabiał | G13: 2 | H13: litr | I13: 3.99 zł | J13: =IFERROR(Lista[ILOŚĆ]*Lista[CENA JEDNOSTKOWA],"") -> 7.98 zł | M13: =obliczenia!M3 -> INNE — SUMA
D14: Ser | E14: Dostawa do domu | F14: Nabiał | G14: 1 | H14: kg | I14: 9.99 zł | J14: =IFERROR(Lista[ILOŚĆ]*Lista[CENA JEDNOSTKOWA],"") -> 9.99 zł | K14: Różne sery | M14: =obliczenia!L3 -> 0
D15: Jaja | E15: Dostawa do domu | F15: Nabiał | G15: 2 | H15: tuzin | I15: 3.50 zł | J15: =IFERROR(Lista[ILOŚĆ]*Lista[CENA JEDNOSTKOWA],"") -> 7.00 zł
D16: Twaróg | E16: Dostawa do domu | F16: Nabiał | G16: 1 | H16: 300 g | I16: 3.89 zł | J16: =IFERROR(Lista[ILOŚĆ]*Lista[CENA JEDNOSTKOWA],"") -> 3.89 zł | M16: =obliczenia!M4 -> ARTYKUŁY SPOŻYWCZE — SUMA
D17: Śmietana | E17: Dostawa do domu | F17: Nabiał | G17: 1 | H17: 150 g | I17: 2.99 zł | J17: =IFERROR(Lista[ILOŚĆ]*Lista[CENA JEDNOSTKOWA],"") -> 2.99 zł | M17: =Suma_zakupów -> 271
D18: Jogurt | E18: Artykuły spożywcze | F18: Nabiał | G18: 1 | H18: 300 g | I18: 4.99 zł | J18: =IFERROR(Lista[ILOŚĆ]*Lista[CENA JEDNOSTKOWA],"") -> 4.99 zł | K18: Grecki z miodem
D19: Wołowina | E19: Rynek | F19: Mięso | G19: 10 | H19: kg | I19: 7.99 zł | J19: =IFERROR(Lista[ILOŚĆ]*Lista[CENA JEDNOSTKOWA],"") -> 79.90 zł | K19: Plastry w bekonie
D20: Łosoś | E20: Sklep rybny | F20: Owoce morza | G20: 6 | H20: kg | I20: 8.99 zł | J20: =IFERROR(Lista[ILOŚĆ]*Lista[CENA JEDNOSTKOWA],"") -> 53.94 zł
D21: Nogi z kraba królewskiego | E21: Sklep rybny | F21: Owoce morza | G21: 5 | H21: kg | I21: 10.99 zł | J21: =IFERROR(Lista[ILOŚĆ]*Lista[CENA JEDNOSTKOWA],"") -> 54.95 zł

Sheet obliczenia (hidden)
A1: *** Arkusz powinien pozostać ukryty ***
K3: =SUM(Lista[SUMA])-SUM(K6:K9) -> 0.00 zł | L3: =ROUND(K3,0) -> 0 zł | M3: INNE — SUMA
L4: =ROUNDUP(SUM(Lista[SUMA]),0) -> 271 zł | M4: ARTYKUŁY SPOŻYWCZE — SUMA
E6: =IFERROR(INDEX(Lista[KATEGORIA],MATCH(,COUNTIF($E$5:E5,Lista[KATEGORIA]),)),"") -> Owoce i warzywa | F6: =SUMIFS(Lista[SUMA],Lista[KATEGORIA],E6) -> 44.875 | G6: =F6+ROW()/1000000 -> 44.875006 | H6: =LARGE($G$6:$G$21,1) -> 108.890009 | I6: =MATCH(H6,$G$6:$G$21,0) -> 4 | J6: =INDEX($E$6:$E$21,$I6) -> Owoce morza | K6: =INDEX($F$6:$F$21,$I6) -> 108.89 zł | L6: =ROUND(K6,0) -> 109 zł | M6: =UPPER(J6) & " SUMA" -> OWOCE MORZA SUMA
E7: =IFERROR(INDEX(Lista[KATEGORIA],MATCH(,COUNTIF($E$5:E6,Lista[KATEGORIA]),)),"") -> Nabiał | F7: =SUMIFS(Lista[SUMA],Lista[KATEGORIA],E7) -> 36.84 | G7: =F7+ROW()/1000000 -> 36.840007 | H7: =LARGE($G$6:$G$21,2) -> 79.900008 | I7: =MATCH(H7,$G$6:$G$21,0) -> 3 | J7: =INDEX($E$6:$E$21,$I7) -> Mięso | K7: =INDEX($F$6:$F$21,$I7) -> 79.90 zł | L7: =ROUND(K7,0) -> 80 zł | M7: =UPPER(J7) & " SUMA" -> MIĘSO SUMA
E8: =IFERROR(INDEX(Lista[KATEGORIA],MATCH(,COUNTIF($E$5:E7,Lista[KATEGORIA]),)),"") -> Mięso | F8: =SUMIFS(Lista[SUMA],Lista[KATEGORIA],E8) -> 79.9 | G8: 79.900008 | H8: =LARGE($G$6:$G$21,3) -> 44.875006 | I8: =MATCH(H8,$G$6:$G$21,0) -> 1 | J8: =INDEX($E$6:$E$21,$I8) -> Owoce i warzywa | K8: =INDEX($F$6:$F$21,$I8) -> 44.88 zł | L8: =ROUND(K8,0) -> 45 zł | M8: =UPPER(J8) & " SUMA" -> OWOCE I WARZYWA SUMA
E9: =IFERROR(INDEX(Lista[KATEGORIA],MATCH(,COUNTIF($E$5:E8,Lista[KATEGORIA]),)),"") -> Owoce morza | F9: =SUMIFS(Lista[SUMA],Lista[KATEGORIA],E9) -> 108.89 | G9: 108.890009 | H9: =LARGE($G$6:$G$21,4) -> 36.840007 | I9: =MATCH(H9,$G$6:$G$21,0) -> 2 | J9: =INDEX($E$6:$E$21,$I9) -> Nabiał | K9: =INDEX($F$6:$F$21,$I9) -> 36.84 zł | L9: =ROUND(K9,0) -> 37 zł | M9: =UPPER(J9) & " SUMA" -> NABIAŁ SUMA
E10: =IFERROR(INDEX(Lista[KATEGORIA],MATCH(,COUNTIF($E$5:E9,Lista[KATEGORIA]),)),"") ->  | F10: =SUMIFS(Lista[SUMA],Lista[KATEGORIA],E10) -> 0 | G10: 1e-05
E11: =IFERROR(INDEX(Lista[KATEGORIA],MATCH(,COUNTIF($E$5:E10,Lista[KATEGORIA]),)),"") ->  | F11: =SUMIFS(Lista[SUMA],Lista[KATEGORIA],E11) -> 0 | G11: 1.1e-05
E12: =IFERROR(INDEX(Lista[KATEGORIA],MATCH(,COUNTIF($E$5:E11,Lista[KATEGORIA]),)),"") ->  | F12: =SUMIFS(Lista[SUMA],Lista[KATEGORIA],E12) -> 0 | G12: 1.2e-05
E13: =IFERROR(INDEX(Lista[KATEGORIA],MATCH(,COUNTIF($E$5:E12,Lista[KATEGORIA]),)),"") ->  | F13: =SUMIFS(Lista[SUMA],Lista[KATEGORIA],E13) -> 0 | G13: 1.3e-05
E14: =IFERROR(INDEX(Lista[KATEGORIA],MATCH(,COUNTIF($E$5:E13,Lista[KATEGORIA]),)),"") ->  | F14: =SUMIFS(Lista[SUMA],Lista[KATEGORIA],E14) -> 0 | G14: 1.4e-05
E15: =IFERROR(INDEX(Lista[KATEGORIA],MATCH(,COUNTIF($E$5:E14,Lista[KATEGORIA]),)),"") ->  | F15: =SUMIFS(Lista[SUMA],Lista[KATEGORIA],E15) -> 0 | G15: 1.5e-05
E16: =IFERROR(INDEX(Lista[KATEGORIA],MATCH(,COUNTIF($E$5:E15,Lista[KATEGORIA]),)),"") ->  | F16: =SUMIFS(Lista[SUMA],Lista[KATEGORIA],E16) -> 0 | G16: 1.6e-05
E17: =IFERROR(INDEX(Lista[KATEGORIA],MATCH(,COUNTIF($E$5:E16,Lista[KATEGORIA]),)),"") ->  | F17: =SUMIFS(Lista[SUMA],Lista[KATEGORIA],E17) -> 0 | G17: 1.7e-05
E18: =IFERROR(INDEX(Lista[KATEGORIA],MATCH(,COUNTIF($E$5:E17,Lista[KATEGORIA]),)),"") ->  | F18: =SUMIFS(Lista[SUMA],Lista[KATEGORIA],E18) -> 0 | G18: 1.8e-05
E19: =IFERROR(INDEX(Lista[KATEGORIA],MATCH(,COUNTIF($E$5:E18,Lista[KATEGORIA]),)),"") ->  | F19: =SUMIFS(Lista[SUMA],Lista[KATEGORIA],E19) -> 0 | G19: 1.9e-05
E20: =IFERROR(INDEX(Lista[KATEGORIA],MATCH(,COUNTIF($E$5:E19,Lista[KATEGORIA]),)),"") ->  | F20: =SUMIFS(Lista[SUMA],Lista[KATEGORIA],E20) -> 0 | G20: 2e-05
E21: =IFERROR(INDEX(Lista[KATEGORIA],MATCH(,COUNTIF($E$5:E20,Lista[KATEGORIA]),)),"") ->  | F21: =SUMIFS(Lista[SUMA],Lista[KATEGORIA],E21) -> 0 | G21: 2.1e-05
